fUSD/lending_fUSD_20240426
["ID","MTS","AMOUNT","RATE_DAILY","PERIOD"]
[323649627,1714146774235,-591.93,0.00017021,2]
[323649628,1714146774244,-545.47,0.00017021,2]
[323649629,1714146774254,-2540.34,0.00017021,2]
[323649630,1714146774263,-4729.62,0.00017021,2]
[323649631,1714146774272,-1995.34,0.00017021,2]
[323649632,1714146774282,-586.34,0.00017021,2]
[323649633,1714146774293,-2124.66,0.00017021,2]
[323649634,1714146774302,-3161.41,0.00017021,2]
[323649635,1714146774311,-1952.38,0.00017021,2]
[323649636,1714146774321,-2807.16,0.00017021,2]
[323649637,1714146774330,-638.27,0.00017021,2]
[323649638,1714146774339,-3223.34,0.00017021,2]
[323649639,1714146774348,-680.69,0.00017021,2]
[323649640,1714146774358,-2296.89,0.00017021,2]
[323649641,1714146774367,-500.0,0.00017021,2]
[323649642,1714146774377,-2368.71,0.00017021,2]
[323649643,1714146774386,-3149.73,0.00017021,2]
[323649644,1714146774396,-7711.79,0.00017021,2]
[323649645,1714146774405,-712.4,0.00017021,2]
[323649646,1714146774414,-743.13,0.00017021,2]
[323649647,1714146774424,-1361.6,0.00017021,2]
[323649648,1714146774433,-2752.21,0.00017021,2]
[323649649,1714146774442,-1414.54,0.00017021,2]
[323649650,1714146774452,-3239.13,0.00017021,2]
[323649651,1714146774461,-770.5,0.00017021,2]
[323649652,1714146774471,-1163.36,0.00017021,2]
[323649653,1714146774480,-6880.92,0.00017021,2]
[323649654,1714146774490,-525.52,0.00017021,2]
[323649655,1714146774502,-2621.73,0.00017021,2]
[323649656,1714146774512,-500.0,0.00017021,2]
[323649657,1714146774521,-2133.22,0.00017021,2]
[323649658,1714146774530,-653.66,0.00017021,2]
[323649659,1714146774542,-1077.73,0.00017021,2]
[323649660,1714146774552,-580.16,0.00017021,2]
[323649661,1714146774561,-4821.94,0.00017021,2]
[323649662,1714146774572,-2598.62,0.00017021,2]
[323649663,1714146774581,-1060.82,0.00017021,2]
[323649664,1714146774591,-584.82,0.00017021,2]
[323649665,1714146774600,-1830.64,0.00017021,2]
[323649666,1714146774612,-500.0,0.00017021,2]
[323649667,1714146774622,-500.0,0.00017021,2]
[323649668,1714146774632,-1584.6,0.00017021,2]
[323649669,1714146774641,-1347.81,0.00017021,2]
[323649670,1714146774651,-6325.77,0.00017021,2]
[323649671,1714146774661,-5879.51,0.00017021,2]
[323649672,1714146774671,-7205.06,0.00017021,2]
[323649673,1714146774681,-1130.16,0.00017021,2]
[323649674,1714146774690,-4293.14,0.00017021,2]
[323649675,1714146774700,-644.42,0.00017021,2]
[323649676,1714146774709,-4451.04,0.00017021,2]
[323649677,1714146774718,-813.86,0.00017021,2]
[323649678,1714146774727,-586.06,0.00017023,2]
[323649679,1714146774735,-551.67,0.00017023,2]
[323649680,1714146774744,-536.41,0.00017023,2]
[323649681,1714146774754,-500.02,0.00017023,2]
[323649682,1714146774763,-890.43,0.00017023,2]
[323649683,1714146774773,-370.859548,0.00017023,2]
[323649684,1714146774782,-370.859548,0.00017023,2]
[323649685,1714146774792,-151.0,0.00017023,2]
[323649686,1714146774801,-341.106249,0.00017023,2]
[323649687,1714146774811,-341.106249,0.00017023,2]
[323649688,1714146774820,-899.93,0.00017023,2]
[323649689,1714146774829,-296.41054827,0.00017023,2]
[323649690,1714146774839,-206.878577,0.00017023,2]
[323649691,1714146774849,-740.2,0.00017023,2]
[323649692,1714146774858,-206.878577,0.00017023,2]
[323649693,1714146774868,-408.559922,0.00017023,2]
[323649694,1714146774877,-408.559922,0.00017023,2]
[323649695,1714146774886,-151.0,0.00017023,2]
[323649696,1714146774896,-669.41,0.00017023,2]
[323649697,1714146774905,-151.0,0.00017023,2]
[323649698,1714146774915,-714.54,0.00017023,2]
[323649699,1714146774925,-1007.49,0.00017023,2]
[323649700,1714146774935,-673.51,0.00017023,2]
[323649701,1714146774945,-500.0,0.00017023,2]
[323649702,1714146774954,-816.79,0.00017023,2]
[323649703,1714146774963,-787.38,0.00017023,2]
[323649704,1714146774972,-976.83,0.00017023,2]
[323649705,1714146774982,-1809.25,0.00017023,2]
[323649706,1714146774991,-2201.55,0.00017023,2]
[323649707,1714146775001,-2475.02,0.00017023,2]
[323649708,1714146775010,-151.0,0.00017023,2]
[323649709,1714146775019,-151.0,0.00017023,2]
[323649710,1714146775029,-267.349696,0.00017023,2]
[323649711,1714146775040,-1021.24,0.00017023,2]
[323649712,1714146775050,-906.43,0.00017023,2]
[323649713,1714146775059,-724.235046,0.00017023,2]
[323649714,1714146775068,-724.235046,0.00017023,2]
[323649715,1714146775078,-480.28515777,0.00017023,2]
[323649716,1714146775087,-724.235046,0.00017023,2]
[323649717,1714146775096,-821.193898,0.00017023,2]
[323649718,1714146775106,-724.235046,0.00017023,2]
[323649719,1714146775115,-821.193898,0.00017023,2]
[323649720,1714146775124,-724.235046,0.00017023,2]
[323649721,1714146775133,-821.193898,0.00017023,2]
[323649722,1714146775142,-724.235046,0.00017023,2]
[323649723,1714146775151,-821.193898,0.00017023,2]
[323649724,1714146775161,-724.235046,0.00017023,2]
[323649725,1714146775171,-821.193898,0.00017023,2]
[323649726,1714146775180,-821.193898,0.00017023,2]
[323649727,1714146775190,-821.193898,0.00017023,2]
[323649728,1714146775199,-724.235046,0.00017023,2]
[323649729,1714146775208,-724.235046,0.00017023,2]
[323649730,1714146775218,-724.235046,0.00017023,2]
[323649731,1714146775227,-724.235046,0.00017023,2]
[323649732,1714146775236,-724.235046,0.00017023,2]
[323649733,1714146775245,-724.235046,0.00017023,2]
[323649734,1714146775255,-724.235042,0.00017023,2]
[323649735,1714146775264,-821.193898,0.00017023,2]
[323649736,1714146775274,-821.193898,0.00017023,2]
[323649737,1714146775283,-821.193898,0.00017023,2]
[323649738,1714146775295,-821.193898,0.00017023,2]
[323649739,1714146775304,-821.193898,0.00017023,2]
[323649740,1714146775313,-821.193898,0.00017023,2]
[323649741,1714146775322,-1734.07,0.00017023,2]
[323649742,1714146775332,-821.19389,0.00017023,2]
[323649743,1714146775341,-1082.39,0.00017023,2]
[323649744,1714146775351,-507.5,0.00017023,2]
[323649745,1714146775361,-500.0,0.00017023,2]
[323649746,1714146775370,-399.502372,0.00017023,2]
[323649747,1714146775381,-399.502372,0.00017023,2]
[323649748,1714146775391,-151.0,0.00017023,2]
[323649749,1714146775402,-399.502372,0.00017023,2]
[323649750,1714146775412,-151.0,0.00017023,2]
[323649751,1714146775422,-399.502372,0.00017023,2]
[323649752,1714146775431,-151.0,0.00017023,2]
[323649753,1714146775441,-399.502372,0.00017023,2]
[323649754,1714146775451,-151.0,0.00017023,2]
[323649755,1714146775460,-399.502372,0.00017023,2]
[323649756,1714146775470,-151.0,0.00017023,2]
[323649757,1714146775481,-399.502372,0.00017023,2]
[323649758,1714146775491,-399.502372,0.00017023,2]
[323649759,1714146775503,-1366.4,0.00017023,2]
[323649760,1714146775512,-399.502372,0.00017023,2]
[323649761,1714146775522,-399.502372,0.00017023,2]
[323649762,1714146775531,-399.502372,0.00017023,2]
[323649763,1714146775542,-151.0,0.00017023,2]
[323649764,1714146775553,-399.502372,0.00017023,2]
[323649765,1714146775565,-151.0,0.00017023,2]
[323649766,1714146775579,-399.502372,0.00017023,2]
[323649767,1714146775589,-399.502367,0.00017023,2]
[323649768,1714146775598,-2166.536851,0.00017023,2]
[323649769,1714146775608,-2166.536851,0.00017023,2]
[323649770,1714146775617,-2166.536851,0.00017023,2]
[323649771,1714146775627,-2166.536851,0.00017023,2]
[323649772,1714146775636,-2166.536851,0.00017023,2]
[323649773,1714146775646,-2166.536851,0.00017023,2]
[323649774,1714146775655,-2166.536851,0.00017023,2]
[323649775,1714146775666,-2166.536851,0.00017023,2]
[323649776,1714146775675,-2166.536851,0.00017023,2]
[323649777,1714146775685,-2166.536851,0.00017023,2]
[323649778,1714146775694,-151.0,0.00017023,2]
[323649779,1714146775704,-2166.536851,0.00017023,2]
[323649780,1714146775713,-151.0,0.00017023,2]
[323649781,1714146775722,-2166.536851,0.00017023,2]
[323649782,1714146775732,-151.0,0.00017023,2]
[323649783,1714146775742,-2166.536851,0.00017023,2]
[323649784,1714146775751,-151.0,0.00017023,2]
[323649785,1714146775760,-2166.536847,0.00017023,2]
[323649786,1714146775770,-151.0,0.00017023,2]
[323649787,1714146775780,-1005.72,0.00017023,2]
[323649788,1714146775790,-988.03,0.00017023,2]
[323649789,1714146775800,-951.02,0.00017023,2]
[323649790,1714146775809,-1013.72,0.00017023,2]
[323649791,1714146775819,-882.88,0.00017023,2]
[323649792,1714146775828,-513.26,0.00017023,2]
[323649793,1714146775837,-1725.66,0.00017023,2]
[323649794,1714146775847,-500.0,0.00017023,2]
[323649795,1714146775856,-1527.71,0.00017023,2]
[323649796,1714146775865,-682.76,0.00017023,2]
[323649797,1714146775874,-522.14,0.00017023,2]
[323649798,1714146775884,-1626.54,0.00017023,2]
[323649799,1714146775893,-511.7,0.00017023,2]
[323649800,1714146775902,-500.0,0.00017023,2]
[323649801,1714146775912,-387.06,0.00017023,2]
[323649802,1714146775921,-500.0,0.00017023,2]
[323649803,1714146775931,-551.92,0.00017023,2]
[323649804,1714146775940,-2126.22,0.00017023,2]
[323649805,1714146775949,-581.23,0.00017023,2]
[323649806,1714146775958,-1925.01,0.00017023,2]
[323649807,1714146775968,-500.0,0.00017023,2]
[323649808,1714146775977,-544.69,0.00017023,2]
[323649809,1714146775987,-1631.66,0.00017023,2]
[323649810,1714146775996,-1881.98,0.00017023,2]
[323649811,1714146776006,-597.71,0.00017023,2]
[323649812,1714146776015,-2029.94,0.00017023,2]
[323649813,1714146776024,-1370.68,0.00017023,2]
[323649814,1714146776033,-1912.0,0.00017023,2]
[323649815,1714146776044,-661.25,0.00017023,2]
[323649816,1714146776054,-919.44,0.00017023,2]
[323649817,1714146776064,-1171.2,0.00017023,2]
[323649818,1714146776073,-638.29,0.00017023,2]
[323649819,1714146776082,-5559.23,0.00017023,2]
[323649820,1714146776093,-2143.51,0.00017023,2]
[323649821,1714146776102,-7686.77,0.00017023,2]
[323649822,1714146776112,-2569.43,0.00017023,2]
[323649823,1714146776122,-2739.23,0.00017023,2]
[323649824,1714146776131,-1792.37,0.00017023,2]
[323649825,1714146776141,-1653.79,0.00017023,2]
[323649826,1714146776150,-625.93,0.00017023,2]
[323649827,1714146776159,-500.0,0.00017023,2]
[323649828,1714146776168,-1471.8,0.00017023,2]
[323649829,1714146776177,-1070.1,0.00017023,2]
[323649830,1714146776187,-4037.45,0.00017023,2]
[323649831,1714146776197,-2650.97,0.00017023,2]
[323649832,1714146776205,-598.19,0.00017023,2]
[323649833,1714146776215,-500.0,0.00017023,2]
[323649834,1714146776223,-4448.95,0.00017023,2]
[323649835,1714146776233,-2695.07,0.00017023,2]
[323649836,1714146776241,-8545.82,0.00017023,2]
[323649837,1714146776249,-591.25,0.00017023,2]
[323649838,1714146776258,-2042.61,0.00017023,2]
[323649839,1714146776267,-693.98,0.00017023,2]
[323649840,1714146776275,-3854.6,0.00017023,2]
[323649841,1714146776283,-1203.03,0.00017023,2]
[323649842,1714146776293,-1971.4,0.00017023,2]
[323649843,1714146776302,-540.52,0.00017023,2]
[323649844,1714146776310,-1968.53,0.00017023,2]
[323649845,1714146776319,-1494.75,0.00017023,2]
[323649846,1714146776328,-3141.48,0.00017023,2]
[323649847,1714146776337,-2509.36,0.00017023,2]
[323649848,1714146776347,-500.92,0.00017023,2]
[323649849,1714146776356,-13276.39,0.00017023,2]
[323649850,1714146776366,-8273.37,0.00017023,2]
[323649851,1714146776375,-742.66,0.00017023,2]
[323649852,1714146776385,-1606.25,0.00017023,2]
[323649853,1714146776394,-1129.91,0.00017023,2]
[323649854,1714146776403,-571.12,0.00017023,2]
[323649855,1714146776412,-500.0,0.00017023,2]
[323649856,1714146776421,-1918.48,0.00017023,2]
[323649857,1714146776723,-2088.24,0.00017023,2]
[323649858,1714146776734,-500.0,0.00017023,2]
[323649859,1714146776744,-1027.75,0.00017023,2]
[323649860,1714146776755,-1818.45,0.00017023,2]
[323649861,1714146776764,-5084.52,0.00017023,2]
[323649862,1714146776774,-1698.98,0.00017023,2]
[323649863,1714146776783,-2638.15,0.00017023,2]
[323649864,1714146776794,-1991.01,0.00017023,2]
[323649865,1714146776804,-565.15263185,0.00017023,2]
[323649866,1714146776814,-4070.98,0.00017023,2]
[323649867,1714146776824,-2076.98,0.00017023,2]
[323649868,1714146776833,-1015.78,0.00017023,2]
[323649869,1714146776843,-1017.72,0.00017023,2]
[323649870,1714146776853,-644.82,0.00017023,2]
[323649871,1714146776862,-500.0,0.00017023,2]
[323649872,1714146776872,-5841.05,0.00017023,2]
[323649873,1714146776881,-700.9,0.00017023,2]
[323649874,1714146776891,-2676.49,0.00017023,2]
[323649875,1714146776901,-743.73,0.00017023,2]
[323649876,1714146776910,-1119.16,0.00017023,2]
[323649877,1714146776920,-3263.92,0.00017023,2]
[323649878,1714146776928,-739.69,0.00017023,2]
[323649879,1714146776938,-1345.69,0.00017023,2]
[323649880,1714146776948,-2402.81,0.00017023,2]
[323649881,1714146776958,-500.0,0.00017024,2]
[323649882,1714146776968,-577.08,0.00017024,2]
[323649883,1714146776977,-632.61865366,0.00017024,2]
[323649884,1714146776986,-703.76,0.00017024,2]
[323649885,1714146776995,-723.08,0.00017024,2]
[323649886,1714146777005,-571.51,0.00017024,2]
[323649887,1714146777015,-1700.69,0.00017024,2]
[323649888,1714146777025,-597.04,0.00017024,2]
[323649889,1714146777035,-980.11,0.00017024,2]
[323649890,1714146777047,-654.78,0.00017024,2]
[323649891,1714146777057,-665.45,0.00017024,2]
[323649892,1714146777068,-507.24,0.00017024,2]
[323649893,1714146777077,-151.0,0.00017024,2]
[323649894,1714146777086,-151.0,0.00017024,2]
[323649895,1714146777095,-499.399205,0.00017024,2]
[323649896,1714146777105,-499.399205,0.00017024,2]
[323649897,1714146777115,-500.0,0.00017024,2]
[323649898,1714146777125,-817.8,0.00017024,2]
[323649899,1714146777135,-530.95,0.00017024,2]
[323649900,1714146777145,-500.0,0.00017024,2]
[323649901,1714146777154,-542.25,0.00017024,2]
[323649902,1714146777164,-597.96,0.00017024,2]
[323649903,1714146777174,-1358.88,0.00017024,2]
[323649904,1714146777183,-619.11,0.00017024,2]
[323649905,1714146777193,-1059.13,0.00017024,2]
[323649906,1714146777203,-500.0,0.00017024,2]
[323649907,1714146777213,-621.09,0.00017024,2]
[323649908,1714146777223,-781.34,0.00017024,2]
[323649909,1714146777233,-603.94,0.00017024,2]
[323649910,1714146777242,-2203.32,0.00017024,2]
[323649911,1714146777251,-741.55,0.00017024,2]
[323649912,1714146777261,-500.0,0.00017024,2]
[323649913,1714146777270,-707.05,0.00017024,2]
[323649914,1714146777280,-1197.27,0.00017024,2]
[323649915,1714146777290,-525.11,0.00017024,2]
[323649916,1714146777299,-1151.01,0.00017024,2]
[323649917,1714146777309,-1089.37,0.00017024,2]
[323649918,1714146777319,-535.73,0.00017024,2]
[323649919,1714146777329,-1314.57,0.00017024,2]
[323649920,1714146777339,-500.0,0.00017024,2]
[323649921,1714146777349,-1247.81,0.00017024,2]
[323649922,1714146777358,-731.33,0.00017024,2]
[323649923,1714146777369,-609.72,0.00017024,2]
[323649924,1714146777378,-713.5,0.00017024,2]
[323649925,1714146777387,-577.85,0.00017024,2]
[323649926,1714146777397,-500.0,0.00017024,2]
[323649927,1714146777407,-1867.18,0.00017024,2]
[323649928,1714146777416,-1355.9,0.00017024,2]
[323649929,1714146777427,-638.8,0.00017024,2]
[323649930,1714146777437,-603.07,0.00017024,2]
[323649931,1714146777447,-1301.29,0.00017024,2]
[323649932,1714146777457,-1375.84,0.00017024,2]
[323649933,1714146777466,-678.19,0.00017024,2]
[323649934,1714146777476,-500.0,0.00017024,2]
[323649935,1714146777485,-724.11,0.00017024,2]
[323649936,1714146777496,-594.9,0.00017024,2]
[323649937,1714146777508,-616.05,0.00017024,2]
[323649938,1714146777517,-488.56295781,0.00017024,2]
[323649939,1714146777526,-1741.91,0.00017024,2]
[323649940,1714146777538,-1642.19,0.00017024,2]
[323649941,1714146777548,-645.35,0.00017024,2]
[323649942,1714146777557,-877.55,0.00017024,2]
[323649943,1714146777567,-1878.46,0.00017024,2]
[323649944,1714146777577,-2626.11,0.00017024,2]
[323649945,1714146777588,-800.34,0.00017024,2]
[323649946,1714146777597,-195.60661363,0.00017051,2]
[323649947,1714146777607,-152.47114041,0.00017068,2]
[323649948,1714146777616,-643.51793279,0.00017076,2]
[323649949,1714146777625,-1000.0,0.0001709,2]
[323649950,1714146777635,-1342.0,0.00017096,2]
[323649951,1714146777644,-524.75,0.00017129,2]
[323649952,1714146777653,-500.0,0.00017129,2]
[323649953,1714146777663,-500.0,0.00017129,2]
[323649954,1714146777673,-912.86,0.00017129,2]
[323649955,1714146777682,-614.45,0.00017129,2]
[323649956,1714146777692,-831.87,0.00017129,2]
[323649957,1714146777702,-1074.39,0.00017129,2]
[323649958,1714146777711,-532.82,0.00017129,2]
[323649959,1714146777720,-773.66,0.00017129,2]
[323649960,1714146777729,-838.97,0.00017129,2]
[323649961,1714146777738,-671.04,0.00017129,2]
[323649962,1714146777747,-724.04,0.00017129,2]
[323649963,1714146777758,-659.6,0.00017129,2]
[323649964,1714146777767,-543.48,0.00017129,2]
[323649965,1714146777777,-605.67,0.00017129,2]
[323649966,1714146777786,-804.0,0.00017129,2]
[323649967,1714146777795,-500.0,0.00017129,2]
[323649968,1714146777805,-512.65,0.00017129,2]
[323649969,1714146777815,-500.0,0.00017129,2]
[323649970,1714146777825,-500.0,0.00017129,2]
[323649971,1714146777834,-733.06,0.00017129,2]
[323649972,1714146777843,-584.14,0.00017129,2]
[323649973,1714146777853,-668.64,0.00017129,2]
[323649974,1714146777864,-535.33,0.00017129,2]
[323649975,1714146777873,-500.0,0.00017129,2]
[323649976,1714146777883,-549.83,0.00017129,2]
[323649977,1714146777891,-201.31534805,0.00017134,2]
[323649978,1714146777900,-152.50582994,0.00017145,2]
[323649979,1714146777910,-155.59674192,0.00017146,2]
[323649980,1714146777919,-1688.61718993,0.00017156,2]
[323649981,1714146777930,-166.66666666,0.00017171,2]
[323649982,1714146777940,-1000.0,0.00017198,2]
[323649983,1714146777949,-1238.66,0.000172,5]
[323649984,1714146777959,-324.74,0.00017204,2]
[323649985,1714146777969,-154.31732651,0.00017216,2]
[323649986,1714146777979,-167.77154523,0.00017233,2]
[323649987,1714146777988,-153.98573812,0.0001725,2]
[323649988,1714146777998,-2000.0,0.0001726,2]
[323649989,1714146778008,-643.51793279,0.00017263,2]
[323649990,1714146778017,-151.74936673,0.00017267,2]
[323649991,1714146778027,-500.0,0.00017295,2]
[323649992,1714146778038,-12541.59,0.00017295,2]
[323649993,1714146778047,-3067.93,0.00017295,2]
[323649994,1714146778057,-683.29,0.00017295,2]
[323649995,1714146778066,-532.8,0.00017295,2]
[323649996,1714146778076,-1060.15,0.00017295,2]
[323649997,1714146778085,-4294.42,0.00017295,2]
[323649998,1714146778095,-539.52,0.00017295,2]
[323649999,1714146778104,-2839.5,0.00017295,2]
[323650000,1714146778114,-594.61,0.00017295,2]
[323650001,1714146778123,-786.04,0.00017295,2]
[323650002,1714146778133,-633.46,0.00017295,2]
[323650003,1714146778143,-2454.05,0.00017295,2]
[323650004,1714146778152,-556.65,0.00017295,2]
[323650005,1714146778162,-783.76,0.00017295,2]
[323650006,1714146778171,-603.38,0.00017295,2]
[323650007,1714146778181,-1769.72,0.00017295,2]
[323650008,1714146778191,-541.56,0.00017295,2]
[323650009,1714146778200,-591.93,0.00017295,2]
[323650010,1714146778210,-545.47,0.00017295,2]
[323650011,1714146778219,-2540.34,0.00017295,2]
[323650012,1714146778229,-4729.62,0.00017295,2]
[323650013,1714146778239,-1995.34,0.00017295,2]
[323650014,1714146778248,-586.34,0.00017295,2]
[323650015,1714146778257,-2124.66,0.00017295,2]
[323650016,1714146778267,-3161.41,0.00017295,2]
[323650017,1714146778276,-1952.38,0.00017295,2]
[323650018,1714146778285,-2807.16,0.00017295,2]
[323650019,1714146778296,-638.27,0.00017295,2]
[323650020,1714146778305,-3223.34,0.00017295,2]
[323650021,1714146778315,-680.69,0.00017295,2]
[323650022,1714146778324,-2296.89,0.00017295,2]
[323650023,1714146778334,-500.0,0.00017295,2]
[323650024,1714146778344,-2368.71,0.00017295,2]
[323650025,1714146778354,-3149.73,0.00017295,2]
[323650026,1714146778364,-7711.79,0.00017295,2]
[323650027,1714146778373,-712.4,0.00017295,2]
[323650028,1714146778383,-743.13,0.00017295,2]
[323650029,1714146778392,-1361.6,0.00017295,2]
[323650030,1714146778402,-918.81239277,0.00017295,2]
[323650031,1714146779066,-203.50008701,0.0001154,2]
[323650032,1714146779076,-208.30959483,0.0001154,2]
[323650033,1714146779086,-155.0,0.0001154,2]
[323650034,1714146779095,-500.0,0.00011541,2]
[323650035,1714146779105,-500.0,0.00011542,2]
[323650036,1714146779114,-500.0,0.00011542,2]
[323650037,1714146779124,-500.0,0.00011542,2]
[323650038,1714146779133,-500.0,0.00011542,2]
[323650039,1714146779142,-820.4,0.00011542,2]
[323650040,1714146779152,-191.34428348,0.00011542,2]
[323650041,1714146779161,-500.0,0.00011543,2]
[323650042,1714146779170,-500.0,0.00011544,2]
[323650043,1714146779179,-230.37571009,0.00011544,2]
[323650044,1714146779188,-500.0,0.00011544,2]
[323650045,1714146779196,-500.0,0.00011815,2]
[323650046,1714146779205,-500.0,0.00011816,2]
[323650047,1714146779215,-431.39,0.00011816,2]
[323650048,1714146779224,-500.0,0.00011816,2]
[323650049,1714146779234,-500.0,0.00011816,2]
[323650050,1714146779243,-820.4,0.00011816,2]
[323650051,1714146779253,-500.0,0.00011817,2]
[323650052,1714146779262,-500.0,0.00011818,2]
[323650053,1714146779270,-500.0,0.00011818,2]
[323650054,1714146779280,-500.0,0.00012089,2]
[323650055,1714146779290,-509.2,0.0001209,2]
[323650056,1714146779299,-500.0,0.0001209,2]
[323650057,1714146779308,-500.0,0.0001209,2]
[323650058,1714146779317,-820.4,0.0001209,2]
[323650059,1714146779326,-430.85261735,0.00012092,2]
[323650060,1714146779336,-500.0,0.00012639,2]
[323650061,1714146779346,-500.0,0.00012913,2]
[323650062,1714146779355,-500.0,0.00013187,2]
[323650063,1714146779365,-195.85,0.00013461,2]
[323650064,1714146779374,-564.334591,0.00013699,2]
[323650065,1714146779383,-253.7453802,0.00013699,2]
[323650066,1714146779411,-6369.714,0.00011543,2]
[323650067,1714146856687,150.0,0.00025,120]
[323650069,1714147206176,299.0,0.00025,120]
[323650070,1714147610150,-155.0,8.715e-05,2]
[323650071,1714147610171,-871.93172064,8.716e-05,2]
[323650072,1714147610192,-309.89472683,8.716e-05,2]
[323650073,1714147610217,-243.55,8.722e-05,2]
[323650074,1714147610238,-368.0,9.999e-05,2]
[323650075,1714147610258,-312.03540365,0.0001,2]
[323650076,1714147715247,-1687.96459635,0.0001,2]
[323650077,1714147715266,-1374.71697208,0.0001,2]
[323650078,1714147715285,-173.01,0.00010294,2]
[323650079,1714147715310,-2795.8,0.00010304,2]
[323650080,1714147715330,-313.33,0.00010414,2]
[323650081,1714147715349,-2052.81,0.00010451,2]
[323650082,1714147715369,-150.0,0.00010518,2]
[323650083,1714147715390,-7952.36843157,0.00010519,2]
[323650095,1714147831739,-608.12703143,9.999e-05,2]
[323650099,1714147831795,-972.432324,9.999e-05,2]
[323650100,1714147831859,-1594.82064457,9.999e-05,2]
[323650101,1714147831869,-206.76188676,0.0001,2]
[323650102,1714147831883,-204.03131332,0.00010425,2]
[323650103,1714147831893,-155.0,0.00010425,2]
[323650104,1714147831902,-250.0,0.00010426,2]
[323650105,1714147831912,-800.0,0.00010435,2]
[323650106,1714147831921,-154.3,0.00010513,2]
[323650107,1714147831930,-300.0,0.00010518,2]
[323650108,1714147831940,-150.0,0.00010518,2]
[323650109,1714147831949,-7197.58615535,0.00010519,2]
[323650110,1714147831961,-851.99998,0.00010519,2]
[323650111,1714147831972,-3239.15,0.00010519,2]
[323650112,1714147832043,-4648.89543308,0.00010519,2]
[323650113,1714147832052,-154.3,0.00010574,2]
[323650114,1714147832061,-154.3,0.00010635,2]
[323650115,1714147832070,-154.3,0.00010696,2]
[323650116,1714147832080,-400.0,0.0001075,2]
[323650117,1714147832089,-256.29609047,0.0001075,2]
[323650118,1714147832100,-43.69390953,0.0001075,2]
[323650119,1714147832109,-154.3,0.00010757,2]
[323650120,1714147832118,-154.3,0.00010818,2]
[323650121,1714147832130,-154.3,0.00010879,2]
[323650122,1714147832139,-154.3,0.0001094,2]
[323650123,1714147832148,-241.41927156,0.00010961,2]
[323650124,1714147832157,-243.55,0.00010986,2]
[323650125,1714147832166,-2750.0,0.00011,3]
[323650126,1714147832175,-2231.36481891,0.00011,2]
[323650127,1714147832186,-2744.40518109,0.00011,2]
[323650128,1714147832195,-150.99,0.00011,2]
[323650129,1714147832204,-797.86741522,0.00011,2]
[323650130,1714147832213,-154.3,0.00011,2]
[323650131,1714147832222,-154.3,0.00011061,2]
[323650132,1714147832231,-158.39,0.0001114,2]
[323650133,1714147832240,-158.39,0.00011158,2]
[323650134,1714147832249,-158.39,0.00011177,2]
[323650135,1714147832258,-189.54841016,0.00011177,2]
[323650136,1714147832277,-310.44158984,0.00011177,2]
[323650137,1714147832286,-7163.7905982,0.00011194,4]
[323650138,1714147832297,-1697.0194018,0.00011194,4]
[323650139,1714147832306,-158.39,0.00011195,2]
[323650140,1714147832316,-530.6335,0.0001144,2]
[323650141,1714147832325,-210.036,0.00011441,2]